[Event "Titled Tuesday Blitz August 15 Early 2023"]
[White "Amanov, Zhanibek"]
[Black "Putri, Regita Desyari"]
[WhiteFideId "13700189"]
[BlackFideId "7109083"]
[WhiteElo "2348"]
[BlackElo "2197"]
[Result "1-0"]
[Round "4"]
[TimeControl "180+1"]
[Date "2023.08.15"]
[WhiteClock "0:00:10"]
[BlackClock "0:00:14"]
[Board "219"]

1. e4 {[%clk 0:03:00]}  e5 {[%clk 0:03:00]} 2. Nf3 {[%clk 0:02:59]}  Nc6 {[%clk 0:03:00]} 3. Bc4 {[%clk 0:02:56]}  Bc5 {[%clk 0:03:00]} 4. c3 {[%clk 0:02:54]}  Nf6 {[%clk 0:02:59]} 5. d4 {[%clk 0:02:54]}  exd4 {[%clk 0:02:59]} 6. e5 {[%clk 0:02:54]}  d5 {[%clk 0:02:56]} 7. Bb5 {[%clk 0:02:54]}  Ne4 {[%clk 0:02:56]} 8. cxd4 {[%clk 0:02:54]}  Bb6 {[%clk 0:02:57]} 9. Nc3 {[%clk 0:02:48]}  O-O {[%clk 0:02:51]} 10. Be3 {[%clk 0:02:35]}  Bg4 {[%clk 0:02:44]} 11. h3 {[%clk 0:02:31]}  Bh5 {[%clk 0:02:34]} 12. Qc2 {[%clk 0:02:14]}  Bg6 {[%clk 0:02:28]} 13. Qb3 {[%clk 0:02:07]}  Ne7 {[%clk 0:01:37]} 14. O-O {[%clk 0:02:00]}  c6 {[%clk 0:01:36]} 15. Bd3 {[%clk 0:01:57]}  Nf5 {[%clk 0:01:18]} 16. Rfe1 {[%clk 0:01:39]}  Nxe3 {[%clk 0:01:12]} 17. Rxe3 {[%clk 0:01:30]}  Nxc3 {[%clk 0:01:12]} 18. bxc3 {[%clk 0:01:27]}  Re8 {[%clk 0:01:11]} 19. a4 {[%clk 0:01:20]}  Qd7 {[%clk 0:01:09]} 20. a5 {[%clk 0:01:18]}  Bd8 {[%clk 0:01:08]} 21. c4 {[%clk 0:01:08]}  Bxd3 {[%clk 0:01:07]} 22. Rxd3 {[%clk 0:01:05]}  Rb8 {[%clk 0:01:00]} 23. cxd5 {[%clk 0:01:01]}  cxd5 {[%clk 0:01:01]} 24. Rc3 {[%clk 0:00:55]}  b5 {[%clk 0:00:52]} 25. Rc5 {[%clk 0:00:52]}  b4 {[%clk 0:00:37]} 26. Rxd5 {[%clk 0:00:49]}  Qf5 {[%clk 0:00:37]} 27. e6 {[%clk 0:00:26]}  Qxe6 {[%clk 0:00:31]} 28. Re5 {[%clk 0:00:22]}  Qc6 {[%clk 0:00:30]} 29. Rxe8+ {[%clk 0:00:17]}  Qxe8 {[%clk 0:00:31]} 30. Re1 {[%clk 0:00:17]}  Qb5 {[%clk 0:00:15]} 31. Qd5 {[%clk 0:00:11]}  Qxd5 {[%clk 0:00:14]} 32. Re8# {[%clk 0:00:10]} 1-0


[Site "https://www.chess.com"]

[Event "Titled Tuesday Blitz August 15 Early 2023"]
[White "Shapiro, Daniel"]
[Black "Politov, Pavel Y."]
[WhiteFideId "2001780"]
[BlackFideId "24110515"]
[WhiteElo "2303"]
[BlackElo "2080"]
[Result "0-1"]
[Round "4"]
[TimeControl "180+1"]
[Date "2023.08.15"]
[WhiteClock "0:00:11"]
[BlackClock "0:00:07"]
[Board "225"]

1. d4 {[%clk 0:03:00]}  d5 {[%clk 0:02:57]} 2. c4 {[%clk 0:03:00]}  dxc4 {[%clk 0:02:58]} 3. e4 {[%clk 0:02:59]}  e5 {[%clk 0:02:57]} 4. Nf3 {[%clk 0:02:59]}  exd4 {[%clk 0:02:57]} 5. Bxc4 {[%clk 0:02:59]}  Nc6 {[%clk 0:02:46]} 6. O-O {[%clk 0:02:56]}  Be6 {[%clk 0:02:46]} 7. Bxe6 {[%clk 0:02:56]}  fxe6 {[%clk 0:02:46]} 8. Qb3 {[%clk 0:02:57]}  Qd7 {[%clk 0:02:45]} 9. Qxb7 {[%clk 0:02:55]}  Rb8 {[%clk 0:02:45]} 10. Qa6 {[%clk 0:02:56]}  Bd6 {[%clk 0:02:40]} 11. Rd1 {[%clk 0:02:32]}  e5 {[%clk 0:02:35]} 12. Nbd2 {[%clk 0:02:17]}  Nge7 {[%clk 0:02:24]} 13. Qc4 {[%clk 0:02:16]}  Rb4 {[%clk 0:02:18]} 14. Qc2 {[%clk 0:02:13]}  O-O {[%clk 0:02:16]} 15. a3 {[%clk 0:02:13]}  Rbb8 {[%clk 0:02:15]} 16. b4 {[%clk 0:01:54]}  Ng6 {[%clk 0:02:02]} 17. Bb2 {[%clk 0:01:51]}  Nf4 {[%clk 0:01:57]} 18. Nf1 {[%clk 0:01:35]}  Kh8 {[%clk 0:01:37]} 19. Ng3 {[%clk 0:01:33]}  Ne7 {[%clk 0:01:27]} 20. Bxd4 {[%clk 0:01:20]}  exd4 {[%clk 0:01:19]} 21. e5 {[%clk 0:01:20]}  Bxe5 {[%clk 0:00:50]} 22. Nxe5 {[%clk 0:01:17]}  Qd5 {[%clk 0:00:50]} 23. Qe4 {[%clk 0:01:09]}  Qxe4 {[%clk 0:00:26]} 24. Nxe4 {[%clk 0:01:09]}  Rbd8 {[%clk 0:00:21]} 25. Ng5 {[%clk 0:00:56]}  Kg8 {[%clk 0:00:19]} 26. g3 {[%clk 0:00:54]}  Ne2+ {[%clk 0:00:16]} 27. Kf1 {[%clk 0:00:50]}  Nc3 {[%clk 0:00:16]} 28. Rd3 {[%clk 0:00:44]}  Rf5 {[%clk 0:00:16]} 29. f4 {[%clk 0:00:42]}  h6 {[%clk 0:00:14]} 30. Ngf3 {[%clk 0:00:42]}  Ned5 {[%clk 0:00:13]} 31. Nxd4 {[%clk 0:00:40]}  Ne3+ {[%clk 0:00:11]} 32. Kf2 {[%clk 0:00:33]}  Ned1+ {[%clk 0:00:10]} 33. Raxd1 {[%clk 0:00:30]}  Nxd1+ {[%clk 0:00:10]} 34. Rxd1 {[%clk 0:00:29]}  Rf6 {[%clk 0:00:10]} 35. Ke3 {[%clk 0:00:28]}  Rfd6 {[%clk 0:00:10]} 36. Nec6 {[%clk 0:00:27]}  Rxc6 {[%clk 0:00:09]} 37. Nxc6 {[%clk 0:00:20]}  Rxd1 {[%clk 0:00:09]} 38. Nxa7 {[%clk 0:00:21]}  Ra1 {[%clk 0:00:09]} 39. Nb5 {[%clk 0:00:21]}  c6 {[%clk 0:00:09]} 40. Nd4 {[%clk 0:00:22]}  Rxa3+ {[%clk 0:00:09]} 41. Ke4 {[%clk 0:00:21]}  Rc3 {[%clk 0:00:09]} 42. Ke5 {[%clk 0:00:21]}  Kf7 {[%clk 0:00:09]} 43. Kd6 {[%clk 0:00:21]}  Rd3 {[%clk 0:00:09]} 44. Kc5 {[%clk 0:00:21]}  Rc3+ {[%clk 0:00:10]} 45. Kb6 {[%clk 0:00:18]}  Ke7 {[%clk 0:00:09]} 46. Nxc6+ {[%clk 0:00:18]}  Kd6 {[%clk 0:00:09]} 47. b5 {[%clk 0:00:19]}  Rc5 {[%clk 0:00:09]} 48. Ka5 {[%clk 0:00:17]}  Rc2 {[%clk 0:00:09]} 49. Kb4 {[%clk 0:00:17]}  Rxh2 {[%clk 0:00:08]} 50. Nd4 {[%clk 0:00:16]}  Rg2 {[%clk 0:00:08]} 51. Nf5+ {[%clk 0:00:16]}  Ke6 {[%clk 0:00:08]} 52. Nxg7+ {[%clk 0:00:15]}  Kf6 {[%clk 0:00:08]} 53. Nh5+ {[%clk 0:00:16]}  Kg6 {[%clk 0:00:08]} 54. b6 {[%clk 0:00:13]}  Kxh5 {[%clk 0:00:08]} 55. Kc5 {[%clk 0:00:12]}  Rxg3 {[%clk 0:00:08]} 56. Kc4 {[%clk 0:00:10]}  Rg4 {[%clk 0:00:07]} 57. b7 {[%clk 0:00:11]}  Rxf4+ {[%clk 0:00:07]} 58. Kc5 {[%clk 0:00:11]}  Rf8 {[%clk 0:00:07]} 59. Kc6 {[%clk 0:00:12]}  Kg5 {[%clk 0:00:07]} 60. Kc7 {[%clk 0:00:12]}  Kg4 {[%clk 0:00:07]} 61. b8=Q {[%clk 0:00:13]}  Rxb8 {[%clk 0:00:07]} 62. Kxb8 {[%clk 0:00:11]}  h5 {[%clk 0:00:07]} 0-1


[Site "https://www.chess.com"]

[Event "Titled Tuesday Blitz August 15 Early 2023"]
[White "Kriti Mayur Patel"]
[Black "Wang, Alexander J"]
[WhiteFideId "35061780"]
[BlackFideId "30955270"]
[WhiteElo "2058"]
[BlackElo "2288"]
[Result "1-0"]
[Round "4"]
[TimeControl "180+1"]
[Date "2023.08.15"]
[WhiteClock "0:00:48"]
[BlackClock "0:00:14"]
[Board "228"]

1. e4 {[%clk 0:03:00]}  c5 {[%clk 0:02:56]} 2. d4 {[%clk 0:03:01]}  cxd4 {[%clk 0:02:54]} 3. c3 {[%clk 0:03:01]}  dxc3 {[%clk 0:02:54]} 4. Nxc3 {[%clk 0:03:02]}  d6 {[%clk 0:02:52]} 5. Nf3 {[%clk 0:03:02]}  Nc6 {[%clk 0:02:47]} 6. Bc4 {[%clk 0:03:03]}  e6 {[%clk 0:02:47]} 7. O-O {[%clk 0:03:02]}  Nf6 {[%clk 0:02:44]} 8. Qe2 {[%clk 0:02:57]}  Be7 {[%clk 0:02:37]} 9. Rd1 {[%clk 0:02:58]}  e5 {[%clk 0:02:38]} 10. h3 {[%clk 0:02:57]}  h6 {[%clk 0:02:34]} 11. Be3 {[%clk 0:02:57]}  O-O {[%clk 0:02:33]} 12. Rac1 {[%clk 0:02:58]}  a6 {[%clk 0:02:33]} 13. b4 {[%clk 0:02:55]}  Be6 {[%clk 0:02:20]} 14. Bxe6 {[%clk 0:02:51]}  fxe6 {[%clk 0:02:21]} 15. a4 {[%clk 0:02:50]}  Qe8 {[%clk 0:02:05]} 16. b5 {[%clk 0:02:49]}  axb5 {[%clk 0:02:04]} 17. axb5 {[%clk 0:02:49]}  Na5 {[%clk 0:01:58]} 18. Qb2 {[%clk 0:02:34]}  Nc4 {[%clk 0:01:57]} 19. Qe2 {[%clk 0:02:31]}  Nxe3 {[%clk 0:01:56]} 20. Qxe3 {[%clk 0:02:32]}  Qf7 {[%clk 0:01:56]} 21. b6 {[%clk 0:02:31]}  Rfc8 {[%clk 0:01:54]} 22. Nb5 {[%clk 0:02:31]}  Rxc1 {[%clk 0:01:48]} 23. Rxc1 {[%clk 0:02:31]}  Ne8 {[%clk 0:01:35]} 24. Nc7 {[%clk 0:02:21]}  Nxc7 {[%clk 0:01:31]} 25. Rxc7 {[%clk 0:02:10]}  Qe8 {[%clk 0:01:24]} 26. Qb3 {[%clk 0:02:06]}  Bf8 {[%clk 0:01:21]} 27. Rxb7 {[%clk 0:01:59]}  Kh7 {[%clk 0:01:11]} 28. Ra7 {[%clk 0:01:54]}  Rb8 {[%clk 0:01:03]} 29. b7 {[%clk 0:01:54]}  Qc6 {[%clk 0:01:00]} 30. Ra8 {[%clk 0:01:36]}  Qc7 {[%clk 0:00:49]} 31. Qxe6 {[%clk 0:01:32]}  Qxb7 {[%clk 0:00:39]} 32. Rxb8 {[%clk 0:01:14]}  Qxb8 {[%clk 0:00:40]} 33. Nh4 {[%clk 0:01:12]}  Qc7 {[%clk 0:00:29]} 34. Ng6 {[%clk 0:01:01]}  Qd8 {[%clk 0:00:20]} 35. Qf7 {[%clk 0:00:51]}  Qc8 {[%clk 0:00:14]} 36. Nxf8+ {[%clk 0:00:50]}  Kh8 {[%clk 0:00:14]} 37. Ne6 {[%clk 0:00:48]} 1-0


[Site "https://www.chess.com"]

[Event "Titled Tuesday Blitz August 15 Early 2023"]
[White "Zepeda Berlanga, Jan Enrique"]
[Black "Levitan, Caleb Levi"]
[WhiteFideId "5132355"]
[BlackFideId "14332620"]
[WhiteElo "1960"]
[BlackElo "2281"]
[Result "0-1"]
[Round "4"]
[TimeControl "180+1"]
[Date "2023.08.15"]
[WhiteClock "0:00:17"]
[BlackClock "0:00:14"]
[Board "231"]

1. c4 {[%clk 0:02:56]}  e6 {[%clk 0:02:58]} 2. Nf3 {[%clk 0:02:55]}  d5 {[%clk 0:02:58]} 3. d4 {[%clk 0:02:51]}  Nf6 {[%clk 0:02:58]} 4. Bg5 {[%clk 0:02:49]}  a6 {[%clk 0:02:45]} 5. Nc3 {[%clk 0:02:44]}  dxc4 {[%clk 0:02:44]} 6. e4 {[%clk 0:02:44]}  b5 {[%clk 0:02:42]} 7. e5 {[%clk 0:02:43]}  h6 {[%clk 0:02:42]} 8. Bh4 {[%clk 0:02:41]}  g5 {[%clk 0:02:41]} 9. Nxg5 {[%clk 0:02:31]}  hxg5 {[%clk 0:02:41]} 10. Bxg5 {[%clk 0:02:30]}  Nbd7 {[%clk 0:02:40]} 11. exf6 {[%clk 0:02:29]}  Bb7 {[%clk 0:02:39]} 12. b3 {[%clk 0:01:54]}  Bb4 {[%clk 0:02:15]} 13. Rc1 {[%clk 0:01:50]}  cxb3 {[%clk 0:02:05]} 14. Qxb3 {[%clk 0:01:45]}  Bxc3+ {[%clk 0:01:54]} 15. Qxc3 {[%clk 0:01:41]}  Rc8 {[%clk 0:01:42]} 16. f3 {[%clk 0:01:15]}  c5 {[%clk 0:01:19]} 17. Be2 {[%clk 0:01:06]}  Rg8 {[%clk 0:00:51]} 18. h4 {[%clk 0:01:02]}  cxd4 {[%clk 0:00:48]} 19. Qd2 {[%clk 0:00:54]}  Rxc1+ {[%clk 0:00:44]} 20. Qxc1 {[%clk 0:00:54]}  Ne5 {[%clk 0:00:32]} 21. Qd2 {[%clk 0:00:33]}  d3 {[%clk 0:00:23]} 22. Bd1 {[%clk 0:00:31]}  Nc4 {[%clk 0:00:22]} 23. Qc3 {[%clk 0:00:27]}  Qd6 {[%clk 0:00:17]} 24. Kf2 {[%clk 0:00:24]}  Qc5+ {[%clk 0:00:16]} 25. Kf1 {[%clk 0:00:21]}  Ne3+ {[%clk 0:00:15]} 26. Bxe3 {[%clk 0:00:21]}  Qxc3 {[%clk 0:00:15]} 27. Kf2 {[%clk 0:00:21]}  Qb2+ {[%clk 0:00:15]} 28. Kf1 {[%clk 0:00:17]}  Qxg2+ {[%clk 0:00:14]} 29. Ke1 {[%clk 0:00:18]}  Qxh1+ {[%clk 0:00:15]} 30. Kd2 {[%clk 0:00:19]}  Rg2+ {[%clk 0:00:14]} 31. Kc1 {[%clk 0:00:18]}  Rg1 {[%clk 0:00:13]} 32. Bxg1 {[%clk 0:00:18]}  Qxg1 {[%clk 0:00:13]} 33. h5 {[%clk 0:00:19]}  Bxf3 {[%clk 0:00:14]} 34. h6 {[%clk 0:00:17]}  Qxd1+ {[%clk 0:00:14]} 35. Kb2 {[%clk 0:00:18]}  Qc2+ {[%clk 0:00:14]} 36. Ka3 {[%clk 0:00:17]}  Qc3# {[%clk 0:00:14]} 0-1


[Site "https://www.chess.com"]

[Event "Titled Tuesday Blitz August 15 Early 2023"]
[White "Sadhwani, Raunak"]
[Black "So, Wesley"]
[WhiteFideId "35093487"]
[BlackFideId "5202213"]
[WhiteElo "3001"]
[BlackElo "3141"]
[Result "1-0"]
[Round "5"]
[TimeControl "180+1"]
[Date "2023.08.15"]
[WhiteClock "0:00:05"]
[BlackClock "0:00:00"]
[Board "1"]

1. e4 {[%clk 0:02:59]}  c6 {[%clk 0:02:59]} 2. d4 {[%clk 0:02:58]}  d5 {[%clk 0:03:00]} 3. e5 {[%clk 0:02:59]}  Bf5 {[%clk 0:02:59]} 4. Nf3 {[%clk 0:02:59]}  e6 {[%clk 0:02:59]} 5. Be2 {[%clk 0:03:00]}  c5 {[%clk 0:02:59]} 6. Be3 {[%clk 0:02:54]}  Qb6 {[%clk 0:02:58]} 7. Nc3 {[%clk 0:02:46]}  Nc6 {[%clk 0:02:59]} 8. O-O {[%clk 0:02:44]}  Qxb2 {[%clk 0:02:52]} 9. Nb5 {[%clk 0:02:29]}  c4 {[%clk 0:02:49]} 10. Nc7+ {[%clk 0:02:12]}  Kd7 {[%clk 0:02:46]} 11. Nxa8 {[%clk 0:02:00]}  Qxc2 {[%clk 0:02:43]} 12. Nh4 {[%clk 0:01:32]}  Qxd1 {[%clk 0:02:34]} 13. Rfxd1 {[%clk 0:01:33]}  Nge7 {[%clk 0:02:22]} 14. Nxf5 {[%clk 0:01:13]}  Nxf5 {[%clk 0:02:23]} 15. Rab1 {[%clk 0:01:12]}  Kc8 {[%clk 0:02:05]} 16. Bg4 {[%clk 0:00:51]}  g6 {[%clk 0:01:17]} 17. Bxf5 {[%clk 0:00:38]}  gxf5 {[%clk 0:01:18]} 18. Rb5 {[%clk 0:00:38]}  Be7 {[%clk 0:00:56]} 19. Rdb1 {[%clk 0:00:37]}  Nd8 {[%clk 0:00:57]} 20. g3 {[%clk 0:00:30]}  Kb8 {[%clk 0:00:57]} 21. Nb6 {[%clk 0:00:30]}  axb6 {[%clk 0:00:58]} 22. Rxb6 {[%clk 0:00:31]}  h5 {[%clk 0:00:40]} 23. h4 {[%clk 0:00:21]}  Rg8 {[%clk 0:00:39]} 24. Kh2 {[%clk 0:00:22]}  Kc7 {[%clk 0:00:39]} 25. f3 {[%clk 0:00:18]}  Kc8 {[%clk 0:00:21]} 26. a4 {[%clk 0:00:18]}  Kc7 {[%clk 0:00:18]} 27. Kh3 {[%clk 0:00:18]}  Rh8 {[%clk 0:00:15]} 28. a5 {[%clk 0:00:17]}  Rg8 {[%clk 0:00:15]} 29. a6 {[%clk 0:00:16]}  bxa6 {[%clk 0:00:16]} 30. Rxa6 {[%clk 0:00:17]}  Nc6 {[%clk 0:00:16]} 31. Rb5 {[%clk 0:00:10]}  Bb4 {[%clk 0:00:12]} 32. Rxc6+ {[%clk 0:00:09]}  Kxc6 {[%clk 0:00:13]} 33. Rxb4 {[%clk 0:00:10]}  Ra8 {[%clk 0:00:12]} 34. Rb1 {[%clk 0:00:06]}  Ra3 {[%clk 0:00:10]} 35. Re1 {[%clk 0:00:06]}  Rd3 {[%clk 0:00:10]} 36. Kg2 {[%clk 0:00:07]}  c3 {[%clk 0:00:09]} 37. Kf2 {[%clk 0:00:05]}  Kb5 {[%clk 0:00:10]} 38. Ke2 {[%clk 0:00:05]}  Kc4 {[%clk 0:00:00]} 39. Ra1 {[%clk 0:00:05]} 1-0


[Site "https://www.chess.com"]

[Event "Titled Tuesday Blitz August 15 Early 2023"]
[White "Sarana, Alexey"]
[Black "Makarian, Rudik"]
[WhiteFideId "24133795"]
[BlackFideId "44105681"]
[WhiteElo "3095"]
[BlackElo "2964"]
[Result "0-1"]
[Round "5"]
[TimeControl "180+1"]
[Date "2023.08.15"]
[WhiteClock "0:00:04"]
[BlackClock "0:00:12"]
[Board "3"]

1. d4 {[%clk 0:02:58]}  Nf6 {[%clk 0:03:00]} 2. c4 {[%clk 0:02:58]}  e6 {[%clk 0:03:00]} 3. Nc3 {[%clk 0:02:58]}  d5 {[%clk 0:03:01]} 4. cxd5 {[%clk 0:02:55]}  exd5 {[%clk 0:03:02]} 5. Nf3 {[%clk 0:02:52]}  c6 {[%clk 0:03:01]} 6. Bf4 {[%clk 0:02:52]}  Bd6 {[%clk 0:02:57]} 7. Bxd6 {[%clk 0:02:52]}  Qxd6 {[%clk 0:02:58]} 8. e3 {[%clk 0:02:51]}  O-O {[%clk 0:02:55]} 9. Bd3 {[%clk 0:02:52]}  Bg4 {[%clk 0:02:54]} 10. h3 {[%clk 0:02:51]}  Bxf3 {[%clk 0:02:45]} 11. Qxf3 {[%clk 0:02:50]}  Nbd7 {[%clk 0:02:46]} 12. O-O {[%clk 0:02:50]}  a5 {[%clk 0:02:45]} 13. a3 {[%clk 0:02:49]}  Rfe8 {[%clk 0:02:40]} 14. Rfc1 {[%clk 0:02:43]}  Nb6 {[%clk 0:02:38]} 15. Rc2 {[%clk 0:02:40]}  g6 {[%clk 0:02:36]} 16. Re1 {[%clk 0:02:37]}  Kg7 {[%clk 0:02:36]} 17. g4 {[%clk 0:02:38]}  h6 {[%clk 0:02:35]} 18. Kg2 {[%clk 0:02:38]}  Re7 {[%clk 0:02:32]} 19. Qg3 {[%clk 0:02:38]}  Qd7 {[%clk 0:02:25]} 20. Qf4 {[%clk 0:02:36]}  Rae8 {[%clk 0:02:21]} 21. Rce2 {[%clk 0:02:35]}  Re6 {[%clk 0:01:51]} 22. h4 {[%clk 0:02:19]}  Ne4 {[%clk 0:01:48]} 23. g5 {[%clk 0:02:00]}  hxg5 {[%clk 0:01:43]} 24. hxg5 {[%clk 0:02:01]}  Rh8 {[%clk 0:01:43]} 25. Rh1 {[%clk 0:01:55]}  Rxh1 {[%clk 0:01:40]} 26. Kxh1 {[%clk 0:01:56]}  Nxc3 {[%clk 0:01:29]} 27. bxc3 {[%clk 0:01:55]}  Re8 {[%clk 0:01:13]} 28. Kg2 {[%clk 0:01:52]}  Rh8 {[%clk 0:01:10]} 29. Qe5+ {[%clk 0:01:49]}  Kg8 {[%clk 0:01:11]} 30. Qg3 {[%clk 0:01:47]}  Nc8 {[%clk 0:01:04]} 31. e4 {[%clk 0:01:35]}  Ne7 {[%clk 0:01:01]} 32. f3 {[%clk 0:01:27]}  Rh5 {[%clk 0:00:59]} 33. Re1 {[%clk 0:01:22]}  c5 {[%clk 0:00:48]} 34. exd5 {[%clk 0:01:18]}  Nf5 {[%clk 0:00:36]} 35. Qf4 {[%clk 0:00:57]}  Qxd5 {[%clk 0:00:22]} 36. Re8+ {[%clk 0:00:41]}  Kg7 {[%clk 0:00:21]} 37. Bxf5 {[%clk 0:00:41]}  gxf5 {[%clk 0:00:15]} 38. Kg3 {[%clk 0:00:34]}  cxd4 {[%clk 0:00:14]} 39. cxd4 {[%clk 0:00:35]}  Kg6 {[%clk 0:00:11]} 40. Rg8+ {[%clk 0:00:20]}  Kh7 {[%clk 0:00:11]} 41. Re8 {[%clk 0:00:06]}  Kg6 {[%clk 0:00:11]} 42. Rg8+ {[%clk 0:00:06]}  Kh7 {[%clk 0:00:10]} 43. Qb8 {[%clk 0:00:04]}  f4+ {[%clk 0:00:11]} 44. Kg4 {[%clk 0:00:05]}  Qd7+ {[%clk 0:00:12]} 45. Kxf4 {[%clk 0:00:02]}  Qxd4+ {[%clk 0:00:12]} 46. Kf5 {[%clk 0:00:02]}  Qd5+ {[%clk 0:00:11]} 47. Kg4 {[%clk 0:00:02]}  Qd7+ {[%clk 0:00:10]} 48. Kf4 {[%clk 0:00:02]}  Rh4+ {[%clk 0:00:08]} 49. Kg3 {[%clk 0:00:03]}  Qh3+ {[%clk 0:00:08]} 50. Kf2 {[%clk 0:00:03]}  Qh2+ {[%clk 0:00:09]} 51. Qxh2 {[%clk 0:00:04]}  Rxh2+ {[%clk 0:00:09]} 52. Kg3 {[%clk 0:00:04]}  Kxg8 {[%clk 0:00:10]} 53. Kxh2 {[%clk 0:00:04]}  b5 {[%clk 0:00:11]} 54. Kg3 {[%clk 0:00:03]}  b4 {[%clk 0:00:10]} 55. axb4 {[%clk 0:00:03]}  axb4 {[%clk 0:00:11]} 56. Kf2 {[%clk 0:00:04]}  b3 {[%clk 0:00:11]} 57. Ke2 {[%clk 0:00:04]}  b2 {[%clk 0:00:12]} 0-1


[Site "https://www.chess.com"]

[Event "Titled Tuesday Blitz August 15 Early 2023"]
[White "Kovalenko, Igor"]
[Black "Dubov, Daniil"]
[WhiteFideId "14117908"]
[BlackFideId "24126055"]
[WhiteElo "2931"]
[BlackElo "3077"]
[Result "1-0"]
[Round "5"]
[TimeControl "180+1"]
[Date "2023.08.15"]
[WhiteClock "0:00:11"]
[BlackClock "0:00:00"]
[Board "5"]

1. c4 {[%clk 0:03:00]}  e6 {[%clk 0:02:56]} 2. Nc3 {[%clk 0:03:00]}  d5 {[%clk 0:02:56]} 3. d4 {[%clk 0:03:00]}  Nf6 {[%clk 0:02:56]} 4. Bg5 {[%clk 0:02:59]}  Be7 {[%clk 0:02:56]} 5. Nf3 {[%clk 0:02:58]}  h6 {[%clk 0:02:55]} 6. Bh4 {[%clk 0:02:59]}  O-O {[%clk 0:02:55]} 7. e3 {[%clk 0:02:59]}  b6 {[%clk 0:02:55]} 8. Rc1 {[%clk 0:02:38]}  Bb7 {[%clk 0:02:53]} 9. Bxf6 {[%clk 0:02:37]}  Bxf6 {[%clk 0:02:53]} 10. cxd5 {[%clk 0:02:38]}  exd5 {[%clk 0:02:54]} 11. b4 {[%clk 0:02:36]}  c6 {[%clk 0:02:29]} 12. Bd3 {[%clk 0:02:34]}  Na6 {[%clk 0:02:29]} 13. b5 {[%clk 0:02:02]}  Nb4 {[%clk 0:02:15]} 14. Bb1 {[%clk 0:01:59]}  cxb5 {[%clk 0:02:12]} 15. a3 {[%clk 0:01:31]}  Nc6 {[%clk 0:02:10]} 16. Qd3 {[%clk 0:01:31]}  g6 {[%clk 0:02:09]} 17. Qxb5 {[%clk 0:01:31]}  Na5 {[%clk 0:01:52]} 18. O-O {[%clk 0:01:30]}  Nc4 {[%clk 0:01:45]} 19. Qb3 {[%clk 0:01:19]}  Qd7 {[%clk 0:01:34]} 20. Bd3 {[%clk 0:01:15]}  Rfc8 {[%clk 0:01:33]} 21. a4 {[%clk 0:01:07]}  Bg7 {[%clk 0:01:12]} 22. Rc2 {[%clk 0:01:02]}  Rc7 {[%clk 0:00:57]} 23. Rfc1 {[%clk 0:01:01]}  Rac8 {[%clk 0:00:49]} 24. h3 {[%clk 0:00:33]}  Na5 {[%clk 0:00:28]} 25. Qa2 {[%clk 0:00:20]}  Bf8 {[%clk 0:00:26]} 26. Nb5 {[%clk 0:00:18]}  Rxc2 {[%clk 0:00:24]} 27. Rxc2 {[%clk 0:00:19]}  Rxc2 {[%clk 0:00:24]} 28. Qxc2 {[%clk 0:00:20]}  a6 {[%clk 0:00:22]} 29. Nc3 {[%clk 0:00:20]}  Nc4 {[%clk 0:00:13]} 30. Nxd5 {[%clk 0:00:20]}  Bxd5 {[%clk 0:00:13]} 31. Bxc4 {[%clk 0:00:20]}  Qc7 {[%clk 0:00:08]} 32. Ne5 {[%clk 0:00:19]}  Bd6 {[%clk 0:00:06]} 33. Qb3 {[%clk 0:00:19]}  Bxc4 {[%clk 0:00:04]} 34. Nxc4 {[%clk 0:00:17]}  Be7 {[%clk 0:00:04]} 35. g3 {[%clk 0:00:16]}  Bd8 {[%clk 0:00:04]} 36. h4 {[%clk 0:00:16]}  Qc6 {[%clk 0:00:03]} 37. Ne5 {[%clk 0:00:16]}  Qc7 {[%clk 0:00:03]} 38. Nxg6 {[%clk 0:00:16]}  b5 {[%clk 0:00:04]} 39. axb5 {[%clk 0:00:16]}  axb5 {[%clk 0:00:05]} 40. Ne5 {[%clk 0:00:16]}  Qb7 {[%clk 0:00:05]} 41. d5 {[%clk 0:00:15]}  Be7 {[%clk 0:00:03]} 42. Nc6 {[%clk 0:00:15]}  Bd6 {[%clk 0:00:04]} 43. e4 {[%clk 0:00:15]}  Qb6 {[%clk 0:00:03]} 44. e5 {[%clk 0:00:15]}  Bc5 {[%clk 0:00:04]} 45. Kh2 {[%clk 0:00:14]}  Bxf2 {[%clk 0:00:03]} 46. Ne7+ {[%clk 0:00:13]}  Kf8 {[%clk 0:00:04]} 47. Nf5 {[%clk 0:00:13]}  Qc5 {[%clk 0:00:04]} 48. Qf3 {[%clk 0:00:13]}  Bd4 {[%clk 0:00:03]} 49. Nxh6 {[%clk 0:00:11]}  Qc2+ {[%clk 0:00:03]} 50. Kh3 {[%clk 0:00:11]}  Qg6 {[%clk 0:00:04]} 51. Ng4 {[%clk 0:00:12]}  b4 {[%clk 0:00:03]} 52. d6 {[%clk 0:00:12]}  Qe6 {[%clk 0:00:04]} 53. Qa8+ {[%clk 0:00:10]}  Kg7 {[%clk 0:00:04]} 54. Qe4 {[%clk 0:00:11]}  Bc3 {[%clk 0:00:04]} 55. h5 {[%clk 0:00:10]}  b3 {[%clk 0:00:04]} 56. h6+ {[%clk 0:00:10]}  Kh8 {[%clk 0:00:04]} 57. Qa8+ {[%clk 0:00:10]}  Kh7 {[%clk 0:00:04]} 58. Qe4+ {[%clk 0:00:11]}  Kh8 {[%clk 0:00:04]} 59. Kh4 {[%clk 0:00:10]}  b2 {[%clk 0:00:03]} 60. Nf6 {[%clk 0:00:10]}  b1=Q {[%clk 0:00:01]} 61. Qxb1 {[%clk 0:00:10]}  Qxf6+ {[%clk 0:00:01]} 62. exf6 {[%clk 0:00:10]}  Bxf6+ {[%clk 0:00:00]} 63. Kh3 {[%clk 0:00:11]} 1-0


[Site "https://www.chess.com"]